bitfinex/quotes_ETHUSD_20220227
["timestamp","ask_amount","ask_price","bid_price","bid_amount"]
[1645979005600,1.0,2784.9,2784.8,0.0052122]
[1645979005800,348.89725062,2785.0,2784.8,0.0052122]
[1645979005999,348.89725062,2785.0,2784.9,1.51868289]
[1645979006198,348.89725062,2785.0,2784.8,1.51868289]
[1645979006400,348.89725062,2785.0,2784.7,0.00521249]
[1645979006601,347.48871682,2785.0,2784.7,0.00521249]
[1645979006849,347.48871682,2785.0,2784.8,1.51872306]
[1645979006850,346.48871682,2785.0,2784.8,1.51872306]
[1645979007049,347.48871682,2785.0,2784.7,0.010425]
[1645979007253,347.48871682,2785.0,2784.7,0.00521251]
[1645979007848,1.39201137,2784.8,2784.7,0.00521251]
[1645979008250,4.89201137,2784.8,2784.7,1.52393014]
[1645979008550,4.89201137,2784.8,2784.7,0.00521251]
[1645979008748,5.89201137,2784.8,2784.7,0.00521251]
[1645979008951,2.39201137,2784.8,2784.7,0.00521251]
[1645979009353,1.39201137,2784.8,2784.7,0.00521251]
[1645979009556,1.39201137,2784.8,2784.6,0.00521257]
[1645979010155,3.5,2784.9,2784.6,0.00521257]
[1645979010358,1.0,2784.9,2784.7,1.5186912]
[1645979010888,347.48871682,2785.0,2784.7,1.5186912]
[1645979011188,347.48871682,2785.0,2784.8,1.51862062]
[1645979011386,347.48871682,2785.0,2784.3,0.53876935]
[1645979011586,347.48871682,2785.0,2784.4,1.5186659]
[1645979014439,347.48871682,2785.0,2784.6,0.00563619]
[1645979014639,347.48871682,2785.0,2784.7,1.5186659]
[1645979014839,347.48871682,2785.0,2784.6,0.00563619]
[1645979015440,347.48871682,2785.0,2784.7,1.51865828]
[1645979015638,347.48871682,2785.0,2784.7,1.52429437]
[1645979015838,347.48871682,2785.0,2784.7,0.00563609]
[1645979016842,347.48871682,2785.0,2784.7,0.00549328]
[1645979017044,347.48871682,2785.0,2784.8,1.51863977]
[1645979017243,346.48871682,2785.0,2784.8,1.51863977]
[1645979018195,346.48871682,2785.0,2784.5,0.14492222]
[1645979018396,346.48871682,2785.0,2784.6,1.51859405]
[1645979018998,346.48871682,2785.0,2784.6,1.81859405]
[1645979019299,346.48871682,2785.0,2784.7,1.52094656]
[1645979019904,346.48871682,2785.0,2784.8,14.39]
[1645979020212,346.48871682,2785.0,2784.9,17.25210741]
[1645979020213,344.86900959,2785.0,2784.9,17.25210741]
[1645979020402,344.86900959,2785.0,2784.9,18.34182405]
[1645979020601,344.86900959,2785.0,2784.9,17.11943977]
[1645979020902,344.80712259,2785.0,2784.9,17.11943977]
[1645979021104,344.80712259,2785.0,2784.9,16.04163684]
[1645979021303,344.80712259,2785.0,2784.9,14.84182405]
[1645979021744,344.80712259,2785.0,2784.9,15.84182405]
[1645979021948,344.80712259,2785.0,2784.9,4.95182405]
[1645979022152,344.80712259,2785.0,2784.9,4.59482405]
[1645979022351,344.80712259,2785.0,2784.9,3.59482405]
[1645979022951,344.80712259,2785.0,2784.9,14.48482405]
[1645979023353,344.80712259,2785.0,2784.9,3.59482405]
[1645979023552,344.80712259,2785.0,2784.9,3.33559405]
[1645979024554,344.80712259,2785.0,2784.9,3.03559405]
[1645979025993,344.80712259,2785.0,2784.9,2.03559405]
[1645979030250,344.80712259,2785.0,2784.9,1.51859405]
[1645979035695,344.80712259,2785.0,2784.9,12.70859405]
[1645979035901,344.80712259,2785.0,2784.9,13.22559405]
[1645979036096,344.80712259,2785.0,2784.9,18.08259405]
[1645979036397,344.80712259,2785.0,2784.9,20.76267513]
[1645979037250,344.80712259,2785.0,2784.9,16.02190513]
[1645979037451,344.80712259,2785.0,2784.9,16.34499039]
[1645979037646,344.80712259,2785.0,2784.9,16.16490931]
[1645979037850,344.80712259,2785.0,2784.9,15.48482405]
[1645979038148,344.80712259,2785.0,2784.9,16.16490931]
[1645979038554,344.80712259,2785.0,2784.9,15.52190931]
[1645979038953,344.80712259,2785.0,2784.9,15.84182405]
[1645979039152,344.80712259,2785.0,2784.9,15.58259405]
[1645979039754,344.80712259,2785.0,2784.9,3.33559405]
[1645979039954,344.80712259,2785.0,2784.9,2.33559405]
[1645979040155,343.18758161,2785.0,2784.9,2.33559405]
[1645979046062,342.65658161,2785.0,2784.9,2.33559405]
[1645979046247,342.65658161,2785.0,2784.9,13.22559405]
[1645979046848,342.65658161,2785.0,2784.9,23.56269931]
[1645979047049,342.65658161,2785.0,2784.9,32.62522977]
[1645979047246,342.65658161,2785.0,2784.9,30.12522977]
[1645979047646,342.65658161,2785.0,2784.9,30.48222977]
[1645979048905,336.20063445,2785.0,2784.9,31.56948643]
[1645979049111,329.10886576,2785.0,2784.9,30.66231085]
[1645979049310,323.72310576,2785.0,2784.9,31.56768841]
[1645979049509,323.64771697,2785.0,2784.9,30.66231085]
[1645979049909,296.66833012,2785.0,2784.9,30.66231085]
[1645979050111,229.04842872,2785.0,2784.9,35.51523761]
[1645979050309,218.79755787,2785.0,2784.9,36.3049184]
[1645979050509,193.52451747,2785.0,2784.9,36.3049184]
[1645979051011,171.98438997,2785.0,2784.9,36.3049184]
[1645979051213,171.98438997,2785.0,2784.9,37.80563063]
[1645979051411,171.98438997,2785.0,2784.9,36.3049184]
[1645979051855,171.48438997,2785.0,2784.9,36.3049184]
[1645979052055,171.48438997,2785.0,2784.9,39.8049184]
[1645979052257,171.48438997,2785.0,2784.9,41.16195863]
[1645979052661,171.48438997,2785.0,2784.9,39.8049184]
[1645979055062,171.48438997,2785.0,2784.9,40.0922554]
[1645979055262,171.48438997,2785.0,2784.9,39.9485864]
[1645979055490,171.48438997,2785.0,2784.9,39.8049184]
[1645979056191,171.48438997,2785.0,2784.9,37.6619184]
[1645979056495,171.48438997,2785.0,2784.9,37.566288]
[1645979057695,170.93668297,2785.0,2784.9,37.209288]
[1645979058302,170.44961915,2785.0,2784.9,37.3049184]
[1645979058696,165.06459915,2785.0,2784.9,37.3049184]
[1645979058899,165.06459915,2785.0,2784.9,37.6619184]
[1645979059099,165.06459915,2785.0,2784.9,37.8055924]
[1645979059364,159.67958915,2785.0,2784.9,37.8055924]
[1645979059762,159.67958915,2785.0,2784.9,38.82101946]
[1645979059965,151.63920427,2785.0,2784.9,40.96401946]
[1645979060164,143.73290651,2785.0,2784.9,43.82229038]
[1645979060365,143.35820651,2785.0,2784.9,43.82229038]
[1645979060565,127.26323651,2785.0,2784.9,45.17868787]
[1645979060764,127.26323651,2785.0,2784.9,44.00660368]
[1645979060968,127.26323651,2785.0,2784.9,41.16131589]
[1645979061166,127.26323651,2785.0,2784.9,39.8049184]
[1645979061368,127.26323651,2785.0,2784.9,43.3049184]
[1645979062173,127.26323651,2785.0,2784.9,44.66131589]
[1645979062367,127.26323651,2785.0,2784.9,44.30431589]
[1645979062568,127.26323651,2785.0,2784.9,39.20996933]
[1645979062769,127.26323651,2785.0,2784.9,35.70996933]
[1645979063011,127.26323651,2785.0,2784.9,28.32522977]
[1645979063213,127.26323651,2785.0,2784.9,28.00389449]
[1645979063613,127.26323651,2785.0,2784.9,16.21610449]
[1645979063815,127.26323651,2785.0,2784.9,10.43848877]
[1645979064014,127.26323651,2785.0,2784.9,14.75982405]
[1645979064212,127.26323651,2785.0,2784.9,15.75982405]
[1645979064416,127.26323651,2785.0,2784.9,10.75982405]
[1645979064617,127.26323651,2785.0,2784.9,21.64982405]
[1645979065017,127.26323651,2785.0,2784.9,23.92743977]
[1645979065219,128.28831811,2785.0,2784.9,13.03743977]
[1645979065417,128.28831811,2785.0,2784.9,11.73882837]
[1645979065620,128.28831811,2785.0,2784.9,9.17959837]
[1645979065820,128.28831811,2785.0,2784.9,2.03559405]
[1645979066622,128.28831811,2785.0,2784.9,2.20797421]
[1645979066847,128.28831811,2785.0,2784.9,2.33559405]
[1645979068551,128.28831811,2785.0,2784.9,2.18559405]
[1645979068852,128.28831811,2785.0,2784.9,9.405e-05]
[1645979069253,128.28831811,2785.0,2784.8,3.178e-05]
[1645979069661,127.26323651,2785.0,2784.8,0.00526356]
[1645979069860,127.26323651,2785.0,2784.8,6.356e-05]
[1645979070494,128.26323651,2785.0,2784.8,6.356e-05]
[1645979070899,1.2314367,2784.9,2784.4,7.3]
[1645979072098,1.2314367,2784.9,2784.5,2.289e-05]
[1645979073300,1.2314367,2784.9,2784.4,7.3]
[1645979074860,1.2314367,2784.9,2784.4,6.5011]
[1645979075266,1.2314367,2784.9,2784.4,5.5011]
[1645979075462,1.2314367,2784.9,2784.4,1.4511]
[1645979075662,1.5884367,2784.9,2784.0,4.32e-06]
[1645979075870,0.012681,2784.8,2784.4,3.739e-05]
[1645979077065,0.369681,2784.8,2783.9,0.00132222]
[1645979077665,1.268281,2784.8,2783.9,0.00132222]
[1645979078003,1.268281,2784.8,2783.7,7.3]
[1645979078198,5.0,2784.5,2783.7,7.3]
[1645979078599,6.0,2784.5,2783.7,7.3]
[1645979078799,5.0,2784.3,2783.7,7.3]
[1645979078997,1.10322361,2784.4,2783.7,7.3]
[1645979079199,1.0,2784.3,2782.6,11.02482702]
[1645979079404,0.357,2784.1,2782.6,10.48761572]
[1645979079602,0.357,2784.1,2782.6,8.21]
[1645979079803,0.357,2784.1,2782.7,7.6]
[1645979080404,10.3987605,2784.2,2783.3,0.00583828]
[1645979080609,10.7557605,2784.2,2783.3,0.00583828]
[1645979081006,0.0127268,2784.1,2783.3,0.00583828]
[1645979081603,0.0127268,2784.1,2783.6,0.00267664]
[1645979082951,0.0127268,2784.1,2783.7,0.0026765]
[1645979083155,0.0127268,2784.1,2783.7,7.65e-05]
[1645979083156,3.5,2784.1,2783.7,7.65e-05]
[1645979083750,1.0,2784.1,2783.7,7.65e-05]
[1645979083952,3.5,2784.1,2783.7,7.65e-05]
[1645979084155,0.357,2784.1,2782.8,0.00128188]
[1645979084358,1.25941056,2783.3,2782.8,0.00128188]
[1645979084559,3.5,2784.0,2783.7,0.00418332]
[1645979084758,1.20662078,2783.8,2783.7,0.00418332]
[1645979089452,1.19743391,2783.1,2782.7,7.84363717]
[1645979089654,3.5,2784.0,2782.8,1.51934504]
[1645979089850,1.0,2783.7,2782.8,1.51934504]
[1645979090051,5.39879,2784.1,2782.8,1.51934504]
[1645979090451,48.55963809,2784.0,2782.8,1.51934504]
[1645979090653,1.04259762,2783.6,2782.9,1.29690991]
[1645979090851,3.5,2783.9,2783.0,1.51934504]
[1645979091055,49.55963809,2784.0,2782.7,7.84363717]
[1645979091360,49.55963809,2784.0,2782.8,1.51935195]
[1645979091557,49.55963809,2784.0,2782.8,2.24665463]
[1645979091953,1.37879076,2783.7,2783.1,1.09248689]
[1645979092152,1.37879076,2783.7,2783.2,1.51935195]
[1645979092451,1.37879076,2783.7,2783.1,0.00265685]
[1645979093800,0.00584691,2783.5,2783.1,0.00584792]
[1645979094001,0.00584691,2783.5,2783.2,1.51926007]
[1645979094805,0.00584691,2783.5,2783.1,0.00584792]
[1645979095005,0.00584696,2783.5,2783.1,0.00584786]
[1645979095809,0.00584696,2783.5,2783.2,2.39328937]
[1645979096007,47.49548505,2784.0,2783.4,0.357]
[1645979096210,47.49548505,2784.0,2783.6,0.357]
[1645979096406,47.49548505,2784.0,2783.8,0.357]
[1645979096605,47.49548505,2784.0,2783.9,2.1215236]
[1645979096856,47.49548505,2784.0,2783.9,3.94081297]
[1645979097055,47.49548505,2784.0,2783.9,4.29781297]
[1645979097361,47.49548505,2784.0,2783.9,27.13388297]
[1645979097362,47.29548505,2784.0,2783.9,27.13388297]
[1645979097556,43.18113174,2784.0,2783.9,31.59285416]
[1645979097756,43.18113174,2784.0,2783.9,31.85342532]
[1645979097956,42.21593174,2784.0,2783.9,32.85342532]
[1645979098359,41.49693174,2784.0,2783.9,16.60096416]
[1645979098761,41.49693174,2784.0,2783.9,13.84767616]
[1645979099156,41.49693174,2784.0,2783.9,12.84767616]
[1645979099361,41.49693174,2784.0,2783.9,10.60427256]
[1645979099562,41.49693174,2784.0,2783.9,9.32689148]
[1645979099761,41.49693174,2784.0,2783.9,2.86189148]
[1645979100162,41.49693174,2784.0,2783.9,2.56189148]
[1645979100817,41.49693174,2784.0,2783.9,2.55478248]
[1645979101426,41.49693174,2784.0,2783.9,1.51928937]
[1645979101622,1.01809119,2783.9,2783.5,0.5288888]
[1645979101821,1.01809119,2783.9,2783.6,1.51906202]
[1645979102820,1.01809119,2783.9,2783.5,0.5288888]
[1645979103321,1.02333144,2783.9,2783.5,0.5288888]
[1645979103719,1.02333144,2783.9,2783.6,1.51911728]
[1645979104559,40.90513965,2784.0,2783.6,1.51911728]
[1645979105859,40.90513965,2784.0,2783.6,2.33611728]
[1645979106061,40.90513965,2784.0,2783.7,1.51911728]
[1645979106258,40.90513965,2784.0,2783.8,0.517]
[1645979106463,40.90513965,2784.0,2783.9,1.51911728]
[1645979107062,40.90513965,2784.0,2783.9,2.39311728]
[1645979107662,40.90513965,2784.0,2783.9,3.23059925]
[1645979107860,33.87130335,2784.0,2783.9,3.23059925]
[1645979108097,33.87130335,2784.0,2783.9,14.8207955]
[1645979108098,23.54389641,2784.0,2783.9,14.8207955]
[1645979108296,22.82689641,2784.0,2783.9,24.0352297]
[1645979108495,22.82689641,2784.0,2783.9,14.04988818]
[1645979108697,22.45889641,2784.0,2783.9,13.84507301]
[1645979108898,22.41949641,2784.0,2783.9,13.84507301]
[1645979109504,22.01529718,2784.0,2783.9,23.83041453]
[1645979109701,22.01529718,2784.0,2783.9,26.10865899]
[1645979110104,21.67429718,2784.0,2783.9,26.35243955]
[1645979110801,21.67429718,2784.0,2783.9,15.46243955]
[1645979111005,21.67429718,2784.0,2783.9,12.84290184]
[1645979111405,21.67429718,2784.0,2783.9,11.94041453]
[1645979111609,21.67429718,2784.0,2783.9,11.58341453]
[1645979111876,21.67429718,2784.0,2783.9,10.58341453]
[1645979112074,21.67429718,2784.0,2783.9,10.40333345]
[1645979112280,21.67429718,2784.0,2783.9,9.50111728]
[1645979112477,21.67429718,2784.0,2783.9,2.03611728]
[1645979112878,22.91513393,2784.0,2783.9,2.03611728]
[1645979113483,21.67429718,2784.0,2783.9,2.33611728]
[1645979115191,21.67429718,2784.0,2783.9,1.51911728]
[1645979115615,21.67429718,2784.0,2783.6,1.51911728]
[1645979115816,8.5,2783.9,2783.5,0.00521047]
[1645979116014,12.0,2783.9,2783.5,0.00521047]
[1645979116615,12.0,2783.9,2783.5,0.01044937]
[1645979116821,12.0,2783.9,2783.5,0.0052389]
[1645979116822,8.5,2783.9,2783.5,0.0052389]
[1645979118917,8.5,2783.9,2783.5,0.01047332]
[1645979119115,8.5,2783.9,2783.5,0.00523442]
[1645979120063,21.67953051,2784.0,2783.5,0.00523442]
[1645979120264,21.67952655,2784.0,2783.5,0.00523046]
[1645979120666,21.67952655,2784.0,2783.6,0.69148617]
[1645979120965,21.67952655,2784.0,2783.6,0.817]
[1645979121562,21.67952655,2784.0,2783.6,1.49413854]
[1645979121563,21.67429718,2784.0,2783.6,1.49413854]
[1645979122363,21.67429718,2784.0,2783.6,0.817]
[1645979122663,21.67955878,2784.0,2783.6,0.817]
[1645979124519,20.05930294,2784.0,2783.6,0.817]
[1645979125120,20.05934747,2784.0,2783.6,0.817]
[1645979126117,20.05934747,2784.0,2783.6,0.517]
[1645979126320,20.05934747,2784.0,2783.3,0.48234707]
[1645979126321,7.51288228,2783.7,2783.3,0.67876535]
[1645979126518,7.51288228,2783.7,2783.1,0.92621244]
[1645979126519,7.51288228,2783.7,2783.1,0.02119197]
[1645979126779,7.5,2783.7,2783.1,0.02119197]
[1645979127175,20.05933748,2784.0,2783.1,0.02119197]
[1645979127567,20.05933748,2784.0,2783.0,0.97708468]
[1645979127568,20.05404134,2784.0,2783.0,0.97708468]
[1645979127968,20.05404134,2784.0,2783.0,1.65585003]
[1645979128171,20.05404134,2784.0,2783.1,0.67876535]
[1645979128368,20.05404134,2784.0,2783.2,1.79386997]
[1645979128568,20.05404134,2784.0,2783.2,2.09386997]
[1645979128768,20.05404134,2784.0,2783.4,0.00235206]
[1645979129775,0.005569,2783.8,2783.4,0.00792202]
[1645979129970,0.005569,2783.8,2783.4,0.00556996]
[1645979130372,1.17392937,2783.5,2783.4,0.00556996]
[1645979130614,0.005569,2783.8,2783.4,0.00556996]
[1645979131016,0.01113792,2783.8,2783.4,0.0111398]
[1645979131315,0.00556892,2783.8,2783.4,0.00556984]
[1645979131714,1.26744655,2783.5,2783.4,0.00556984]
[1645979132323,1.26744655,2783.5,2783.4,0.00556555]
[1645979133519,1.26744655,2783.5,2783.3,0.00556547]
[1645979134476,0.00556445,2783.8,2783.3,0.00556547]
[1645979134677,0.00522806,2783.8,2783.3,0.00522911]
[1645979135477,0.00522806,2783.8,2783.4,0.517]
[1645979135677,0.00522806,2783.8,2783.4,1.19576535]
[1645979135878,0.00522793,2783.8,2783.5,1.51900759]
[1645979136078,0.00522793,2783.8,2783.6,0.517]
[1645979136278,0.00522793,2783.8,2783.7,1.51900759]
[1645979137080,20.05404134,2784.0,2783.7,1.51900759]
[1645979137780,20.05404134,2784.0,2783.8,2.03600759]
[1645979138018,20.05404134,2784.0,2783.9,1.51900759]
[1645979138217,20.05404134,2784.0,2783.9,2.33600759]
[1645979138419,20.05928863,2784.0,2783.9,2.33600759]
[1645979138719,20.05928863,2784.0,2783.9,3.44285145]
[1645979138919,20.05928863,2784.0,2783.9,4.1216168]
[1645979139120,20.05928863,2784.0,2783.9,3.44285145]
[1645979139327,20.05928863,2784.0,2783.9,2.33600759]
[1645979139523,20.05404134,2784.0,2783.9,2.33600759]
[1645979144584,18.43391062,2784.0,2783.9,2.33600759]
[1645979146622,18.43391062,2784.0,2783.9,2.03600759]
[1645979146826,6.5,2783.9,2783.5,0.00125809]
[1645979147022,10.0,2783.9,2783.4,0.68402605]
[1645979147224,10.0,2783.9,2783.4,0.0052607]
[1645979147832,1.04812853,2783.8,2783.4,0.0052607]
[1645979148029,1.05338804,2783.8,2783.4,0.00526039]
[1645979148829,3.5,2783.7,2783.4,0.00526039]
[1645979149029,3.5,2783.7,2783.4,0.00526399]
[1645979150272,3.5,2783.7,2783.4,0.00525925]
[1645979150478,1.05338691,2783.8,2783.4,0.00525925]
[1645979151577,1.04812853,2783.8,2783.4,0.0023589]
[1645979152777,1.05338933,2783.8,2783.4,0.00526167]
[1645979153825,3.5,2783.7,2783.4,0.0106215]
[1645979154022,3.5,2783.7,2783.4,5.983e-05]
[1645979154226,4.5,2783.7,2783.4,5.983e-05]
[1645979154428,3.5,2783.7,2783.4,5.983e-05]
[1645979154628,4.5,2783.7,2783.4,5.983e-05]
[1645979155129,4.5,2783.7,2782.8,0.68002344]
[1645979156228,4.5029058,2783.7,2782.9,0.67876535]
[1645979157095,1.3819784,2783.2,2782.9,0.67876535]
[1645979157696,4.50555885,2783.7,2783.0,0.67876535]
[1645979157896,4.50555885,2783.7,2782.9,0.67876535]
[1645979158802,4.50555885,2783.7,2783.2,0.00556]
[1645979158997,1.00555885,2783.7,2783.2,0.00556]
[1645979159199,0.00555885,2783.7,2783.2,0.00556]
[1645979159798,0.00555885,2783.7,2783.3,0.00555337]
[1645979159998,1.39447494,2783.4,2783.3,0.00555337]
[1645979160198,0.00555242,2783.7,2783.3,0.00555337]
[1645979160822,0.00555242,2783.7,2783.3,0.68431872]
[1645979161018,0.00555242,2783.7,2783.3,1.20131872]
[1645979161218,0.00555247,2783.7,2783.3,2.58725193]
[1645979161418,0.00555247,2783.7,2783.3,1.20131877]
[1645979161619,0.00555247,2783.7,2783.3,0.52255342]
[1645979161822,0.00555247,2783.7,2783.3,0.00555342]
[1645979162417,1.37163784,2783.6,2783.3,0.00522956]
[1645979162618,0.00522866,2783.7,2783.3,0.00522956]
[1645979163520,0.00522647,2783.7,2783.3,0.00522736]
[1645979163720,1.40203548,2783.7,2783.3,0.00522736]
[1645979164120,0.00522647,2783.7,2783.3,0.00522736]
[1645979164574,19.43391062,2784.0,2783.9,0.01045294]
[1645979165171,20.87342384,2784.0,2783.9,0.01045294]
[1645979165773,19.87342384,2784.0,2783.9,0.01045294]
[1645979165976,18.43391062,2784.0,2783.9,0.01045294]
[1645979166874,18.43391062,2784.0,2783.9,1.52963558]
[1645979167073,18.43391062,2784.0,2783.9,0.01045294]
[1645979167279,18.43391062,2784.0,2783.9,1.52963558]
[1645979184640,16.81353707,2784.0,2783.9,1.52963558]
[1645979194026,1.5296,2783.9,2783.7,0.67876535]
[1645979194293,8.5,2783.8,2783.4,0.0052622]
[1645979195079,1.26134485,2783.7,2783.4,0.0052622]
[1645979195880,1.26134485,2783.7,2783.0,0.00125809]
[1645979196284,1.21915666,2783.1,2783.0,0.00125809]
[1645979196482,9.50290543,2783.8,2782.9,0.53891054]
[1645979196881,9.50290543,2783.8,2783.0,0.00125809]
[1645979197082,9.5029049,2783.8,2783.0,0.00125809]
[1645979198329,9.50290527,2783.8,2783.0,0.00125809]
[1645979199129,1.4293767,2783.1,2783.0,0.00125809]
[1645979199336,1.4293767,2783.1,2782.9,0.53891054]
[1645979199539,9.50567868,2783.8,2783.3,0.00567986]
[1645979199940,8.50567868,2783.8,2783.3,0.00567986]
[1645979200335,9.50567868,2783.8,2783.3,0.00567986]
[1645979200739,9.50567884,2783.8,2783.4,0.00567972]
[1645979201338,1.25944333,2783.7,2783.4,0.00567972]
[1645979201965,1.25944333,2783.7,2783.0,0.00125809]
[1645979203567,1.05976038,2783.1,2783.0,0.00125809]
[1645979203769,1.05976038,2783.1,2782.9,1.05591054]
[1645979204167,1.05976038,2783.1,2782.9,1.73712853]
[1645979204374,1.05976038,2783.1,2782.9,1.74265417]
[1645979204772,9.5055238,2783.8,2783.4,0.56093369]
[1645979206027,1.41146024,2783.7,2783.4,0.56093369]
[1645979207834,1.41146024,2783.7,2783.1,0.00125809]
[1645979208031,7.53826024,2783.7,2782.9,0.00678373]
[1645979208329,300.0,2783.0,2782.9,0.00678373]
[1645979208529,300.0,2783.0,2782.9,2.564e-05]
[1645979208728,301.0,2783.0,2782.9,2.564e-05]
[1645979209380,301.0,2783.0,2782.9,5.133e-05]
[1645979210180,301.0,2783.0,2782.9,0.00557702]
[1645979210385,301.0,2783.0,2782.9,7.702e-05]
[1645979211982,301.0,2783.0,2782.3,0.68121799]
[1645979212381,301.0,2783.0,2782.2,0.68247608]
[1645979212581,1.10878514,2782.9,2782.2,0.68247608]
[1645979213032,1.10878514,2782.9,2782.5,6.817e-05]
[1645979213227,5.0,2782.8,2782.5,6.817e-05]
[1645979213626,6.0,2782.8,2782.5,6.817e-05]
[1645979214027,5.0,2782.6,2782.5,6.817e-05]
[1645979214227,6.0,2782.6,2781.3,8.20502047]
[1645979214429,6.0,2782.6,2781.2,6.54956493]
[1645979214630,6.0,2782.6,2781.2,4.27132047]
[1645979214831,6.0,2782.6,2781.2,3.3663]
[1645979215434,5.0,2782.4,2781.2,3.3663]
[1645979215639,5.0,2782.4,2781.2,2.8663]
[1645979215834,1.0,2782.4,2781.2,2.8663]
[1645979216134,3.5,2782.3,2781.1,0.90502047]
[1645979216334,4.5,2782.3,2780.9,2.09432047]
[1645979216537,1.36028169,2781.5,2781.0,0.0012428]
[1645979216786,1.36028169,2781.5,2780.9,2.39432047]
[1645979216787,1.36028169,2781.5,2780.9,1.20502047]
[1645979216981,1.36028169,2781.5,2780.9,0.3]
[1645979217182,3.5,2781.4,2780.8,0.90626327]
[1645979217380,3.5,2781.4,2780.8,0.0012428]
[1645979217783,4.5,2781.4,2780.8,0.0012428]
[1645979217982,3.5,2781.4,2781.1,0.00586954]
[1645979218189,4.5,2781.4,2781.1,0.00586954]
[1645979218380,4.5,2781.4,2781.1,6.954e-05]
[1645979218581,8.5,2781.3,2780.7,6.34930554]
[1645979218781,3.5,2781.2,2780.6,0.0247245]
[1645979218982,3.5,2781.2,2781.1,0.0058695]
[1645979219280,1.0,2781.2,2781.1,0.0058695]
[1645979219486,1.0,2781.3,2781.1,0.0058695]
[1645979219686,3.5,2781.4,2781.1,0.0058695]
[1645979219885,8.5,2781.4,2781.1,6.95e-05]
[1645979220087,4.5,2781.4,2781.1,6.95e-05]
[1645979220288,1.0,2781.4,2780.6,0.0012428]
[1645979220735,4.5,2781.6,2780.6,0.0012428]
[1645979221726,1.21839628,2781.0,2780.6,0.0012428]
[1645979221926,4.5,2781.6,2780.4,7.3]
[1645979222125,1.0,2781.6,2780.5,0.0012428]
[1645979222325,8.9852,2781.7,2780.5,0.0012428]
[1645979222326,9.9852,2781.7,2780.5,0.0012428]
[1645979222528,8.8528,2781.7,2780.5,0.0012428]
[1645979222729,8.8528,2781.7,2780.7,0.00586992]
[1645979223130,1.0,2781.7,2780.7,0.00586992]
[1645979223332,3.5,2781.9,2780.7,0.00586992]
[1645979223333,1.21119114,2781.3,2780.7,0.00586992]
[1645979223733,1.21119114,2781.3,2780.6,0.1450428]
[1645979223931,1.21119114,2781.3,2780.6,0.0012428]
[1645979224873,5.79552004,2781.7,2781.6,0.41055451]
[1645979225073,2.29552004,2781.7,2781.6,0.41055451]
[1645979225274,1.29552004,2781.7,2781.6,0.41055451]
[1645979225473,4.79552004,2781.7,2781.6,0.41055451]
[1645979225878,2.29552004,2781.7,2781.6,0.41055451]
[1645979226276,1.29552004,2781.7,2781.6,0.41055451]
[1645979227179,4.79552004,2781.7,2781.6,0.41055451]
[1645979227580,5.79552004,2781.7,2781.6,0.41055451]
[1645979228228,2.29552004,2781.7,2781.6,0.41055451]
[1645979228630,1.29552004,2781.7,2781.6,0.41055451]
[1645979231870,0.14994549,2781.6,2781.0,0.00552517]
[1645979232273,0.14994549,2781.6,2781.0,0.00519239]
[1645979233369,0.14994549,2781.6,2781.0,0.01038441]
[1645979233574,0.14994549,2781.6,2781.0,0.00519202]
[1645979234678,0.14994549,2781.6,2781.0,0.00522136]
[1645979235519,0.14994549,2781.6,2781.1,1.52043745]
[1645979236922,0.14994549,2781.6,2781.0,0.01051624]
[1645979237121,0.14994549,2781.6,2781.0,0.00525815]
[1645979237323,1.2441241,2781.1,2781.0,0.00525815]
[1645979237527,0.14994549,2781.6,2781.0,0.00525815]
[1645979237723,0.14994549,2781.6,2781.1,1.52050284]
[1645979238729,0.14994549,2781.6,2781.2,1.52050284]
[1645979238926,1.41811531,2781.4,2780.9,0.00525358]
[1645979239125,0.14994549,2781.6,2781.0,1.52043663]
[1645979239385,0.01049863,2782.0,2781.0,1.52568577]
[1645979239586,0.01049863,2782.0,2781.1,2.53823663]
[1645979239587,0.00524714,2782.0,2781.1,2.53823663]
[1645979239781,0.00524714,2782.0,2781.2,1.52043663]
[1645979239981,0.00524714,2782.0,2781.2,1.52167943]
[1645979240181,1.35804236,2781.8,2781.2,1.52167943]
[1645979240984,0.00524741,2782.0,2781.2,1.52167943]
[1645979241488,0.00524741,2782.0,2781.2,1.87867943]
[1645979241683,0.00524741,2782.0,2781.3,1.52043663]
[1645979241881,0.00524799,2782.0,2781.3,1.52167943]
[1645979242082,1.06736149,2782.0,2781.3,1.87867943]
[1645979242284,1.06736149,2782.0,2781.4,1.87743663]
[1645979242483,1.06736149,2782.0,2781.5,1.52043663]
[1645979242685,0.00524799,2782.0,2781.5,1.66403663]
[1645979242882,0.00524799,2782.0,2781.6,1.52043663]
[1645979243128,0.00524865,2782.0,2781.6,1.52043663]
[1645979243730,0.00524865,2782.0,2781.7,1.52043663]
[1645979244034,0.00524865,2782.0,2781.8,1.52043663]
[1645979244335,0.00524881,2782.0,2781.5,0.0012428]
[1645979244633,0.00524881,2782.0,2781.4,0.1436]
[1645979245035,4.5,2782.5,2782.2,0.50888045]
[1645979245234,1.0,2782.5,2782.2,0.50888045]
[1645979245635,1.89927,2782.6,2782.2,0.50888045]
[1645979245834,3.5,2782.5,2782.2,0.50888045]
[1645979246034,0.89927,2782.6,2782.2,0.50888045]
[1645979246235,4.72313209,2782.5,2782.2,0.50888045]
[1645979246641,5.72313209,2782.5,2782.2,0.50888045]
[1645979247073,5.72313209,2782.5,2781.4,0.00356546]
[1645979247277,8.5,2782.4,2781.4,0.00356546]
[1645979247474,3.5,2782.3,2781.4,1.52395945]
[1645979247872,0.89937,2782.2,2781.5,1.52039399]
[1645979248074,3.5,2782.1,2781.6,1.52039399]
[1645979248272,4.5,2782.1,2781.4,0.00356546]
[1645979248674,1.0,2782.1,2781.4,0.00356546]
[1645979248877,1.26919196,2782.0,2781.4,1.52399783]
[1645979249081,1.26919196,2782.0,2781.4,0.00556644]
[1645979249482,1.26919196,2782.0,2781.5,1.52049982]
[1645979253428,3.5,2781.9,2781.5,1.52049982]
[1645979253827,3.5,2781.8,2781.5,1.52049982]
[1645979254285,1.0,2781.8,2781.5,1.52049982]
[1645979254485,11.66869196,2782.0,2781.5,1.52049982]
[1645979254681,6.66869196,2782.0,2781.5,1.52049982]
[1645979255885,5.0,2781.9,2781.4,0.00520834]
[1645979256086,3.5,2781.8,2781.4,0.00520834]
[1645979256285,3.5,2781.8,2781.1,0.00124255]
[1645979256485,4.5,2781.8,2781.1,0.00124255]
[1645979257487,4.5,2781.8,2781.3,0.00525431]
[1645979258722,1.0,2781.8,2781.4,0.0052543]
[1645979258923,4.5,2781.8,2781.4,0.0052543]
[1645979259124,3.5,2781.8,2781.4,0.0052543]
[1645979259329,1.04037927,2781.5,2781.4,0.0052543]
[1645979259527,1.0,2781.9,2781.4,0.0052543]
[1645979259736,1.0,2782.0,2781.4,0.01050865]